bitfinex/quotes_ETHUSD_20240601
["timestamp","ask_amount","ask_price","bid_price","bid_amount"]
[1717208408377,0.15090386,3769.4,3769.0,3.226636]
[1717208415410,0.15090386,3769.4,3769.0,2.65316]
[1717208416507,3.1161,3769.9,3769.0,2.65316]
[1717208418811,0.642,3769.7,3769.0,2.65316]
[1717208422997,0.642,3769.7,3769.1,2.3855]
[1717208423770,5.65242,3770.2,3769.2,2.65308]
[1717208424001,0.642,3770.1,3769.2,3.156946]
[1717208424182,1.21561132,3770.1,3769.2,3.156946]
[1717208424404,0.642,3770.1,3769.2,3.156946]
[1717208425918,5.65242,3770.2,3769.2,3.156946]
[1717208426838,0.57358469,3770.1,3769.2,3.156946]
[1717208426986,5.65242,3770.2,3769.2,3.156946]
[1717208427391,0.57358475,3770.1,3769.2,3.156946]
[1717208427621,0.57358475,3770.1,3769.3,0.6184446]
[1717208430782,1.21558475,3770.1,3769.3,0.6184446]
[1717208430983,1.21558475,3770.1,3769.2,2.65308]
[1717208433237,0.57358475,3770.1,3769.2,2.65308]
[1717208433437,1.21558475,3770.1,3769.2,2.65308]
[1717208440644,0.57358475,3770.1,3769.3,2.421]
[1717208441991,0.57358475,3770.1,3769.4,0.642]
[1717208442295,0.57358475,3770.1,3769.5,2.421]
[1717208442619,1.21558475,3770.5,3769.5,2.421]
[1717208446067,0.642,3770.3,3769.5,2.421]
[1717208446990,2.2654,3770.2,3769.5,2.421]
[1717208447164,1.50632475,3770.1,3769.2,5.71608]
[1717208447593,0.57358475,3770.0,3769.2,5.71608]
[1717208452177,0.57358475,3770.0,3769.2,5.07408]
[1717208453806,2.9074,3769.8,3768.7,5.07438]
[1717208454316,0.57362209,3769.7,3768.7,5.07438]
[1717208454826,0.57362209,3769.7,3768.8,0.642]
[1717208454962,0.57362209,3769.7,3769.0,0.642]
[1717208455418,0.57362209,3769.7,3768.7,5.07438]
[1717208455419,0.57362209,3769.7,3768.8,0.642]
[1717208455715,0.57362209,3769.7,3768.8,1.892438]
[1717208456306,0.57362209,3769.7,3769.0,0.642]
[1717208457509,0.57362209,3769.7,3768.8,1.250438]
[1717208457675,0.57362209,3769.7,3769.0,0.642]
[1717208458183,0.57361801,3769.7,3769.0,0.642]
[1717208460268,0.57361801,3769.7,3769.1,2.3971]
[1717208460913,2.2654,3769.8,3769.1,2.3971]
[1717208461770,2.65259,3769.9,3769.1,2.3971]
[1717208461972,0.57360686,3769.8,3769.2,0.642]
[1717208462167,0.57360686,3769.8,3769.4,0.642]
[1717208462485,0.57358716,3770.5,3769.7,2.3971]
[1717208466045,0.642,3770.3,3769.3,3.29495]
[1717208466320,0.55,3770.2,3769.3,3.29495]
[1717208466552,1.12358716,3770.2,3769.3,3.29495]
[1717208466684,0.57358716,3770.1,3769.3,3.29495]
[1717208466884,0.57358716,3770.3,3769.5,0.642]
[1717208469083,0.57358716,3770.3,3770.0,0.642]
[1717208469535,0.13602615,3770.6,3770.0,0.642]
[1717208470039,0.13602615,3770.6,3770.2,0.642]
[1717208470193,0.13602615,3770.6,3770.2,3.0391]
[1717208470732,0.13602615,3770.6,3770.2,2.3971]
[1717208473152,0.13602615,3770.6,3770.3,2.3971]
[1717208477555,0.13602615,3770.6,3770.0,2.2795]
[1717208480267,0.13602615,3770.6,3770.0,2.83692]
[1717208482881,0.13602615,3770.6,3770.3,0.642]
[1717208485144,0.13602615,3770.6,3770.1,0.642]
[1717208487179,0.13602615,3770.6,3770.2,0.642]
[1717208491586,0.13602615,3770.6,3769.7,4.9322]
[1717208491838,0.13602615,3770.6,3769.8,0.642]
[1717208492153,2.4459,3770.5,3769.8,0.642]
[1717208493533,2.4459,3770.5,3769.7,3.14592]
[1717208493534,0.55,3770.4,3769.7,2.6527]
[1717208494375,0.92739262,3770.4,3769.7,2.6527]
[1717208496238,0.92739262,3770.4,3769.8,0.642]
[1717208496438,0.92739262,3770.4,3769.7,2.6527]
[1717208496736,0.92739262,3770.4,3769.8,0.642]
[1717208500595,0.55,3770.4,3769.8,0.642]
[1717208501962,0.55,3770.4,3770.0,0.642]
[1717208504759,0.13602615,3770.6,3770.0,0.642]
[1717208505091,0.13602615,3770.6,3770.2,0.642]
[1717208509827,0.13602615,3770.6,3770.4,0.642]
[1717208510715,0.13602615,3770.6,3770.4,3.29422]
[1717208510912,0.13602615,3770.6,3770.5,0.563752]
[1717208520513,2.3942,3771.6,3770.6,2.65209]
[1717208520775,2.3942,3771.6,3770.9,0.642]
[1717208520776,0.57339995,3771.5,3770.9,0.642]
[1717208520973,3.57339995,3771.5,3770.9,0.642]
[1717208521176,3.0,3771.5,3770.9,0.642]
[1717208521318,2.3942,3771.6,3770.9,0.642]
[1717208521516,0.57338412,3771.5,3770.9,0.642]
[1717208521764,3.57338412,3771.5,3770.9,0.642]
[1717208521921,3.0,3771.5,3770.9,0.642]
[1717208529926,3.0,3771.5,3770.7,0.642]
[1717208530126,0.6198749,3771.4,3770.7,0.642]
[1717208531451,1.19327277,3771.4,3770.7,0.642]
[1717208531773,2.3942,3771.3,3770.5,0.642]
[1717208532025,1.12342332,3771.2,3770.5,0.642]
[1717208532309,0.97890482,3771.1,3770.5,0.642]
[1717208534036,2.3942,3771.0,3770.1,2.65239]
[1717208534167,2.3942,3771.0,3770.5,0.642]
[1717208535420,2.3942,3771.0,3770.1,2.65239]
[1717208535573,2.3942,3771.0,3770.4,0.642]
[1717208535771,0.39231048,3770.9,3770.4,0.642]
[1717208537585,2.3942,3771.0,3770.4,0.642]
[1717208540511,0.97890482,3771.1,3770.6,0.642]
[1717208541313,2.3341,3771.2,3770.6,0.642]
[1717208541530,2.3341,3771.8,3771.0,0.642]
[1717208541815,1.12337968,3771.7,3771.0,0.642]
[1717208545065,1.12337968,3771.7,3771.2,0.642]
[1717208545847,1.12337968,3771.7,3771.0,0.642]
[1717208545975,0.61087097,3771.6,3771.0,0.642]
[1717208548443,2.3341,3771.8,3771.2,0.642]
[1717208548986,2.3341,3772.0,3771.2,0.642]
[1717208549185,1.12332506,3771.9,3771.2,0.642]
[1717208549440,4.12332506,3771.9,3771.2,0.642]
[1717208549740,0.57332506,3771.8,3771.2,0.642]
[1717208551685,0.57332506,3771.8,3770.4,2.792]
[1717208551686,0.57332506,3771.8,3771.7,0.642]
[1717208551892,5.90742506,3772.3,3771.7,0.642]
[1717208552096,0.57332506,3772.2,3771.7,0.642]
[1717208554305,2.3341,3772.1,3771.4,0.642]
[1717208554536,2.8841,3772.1,3771.4,0.642]
[1717208554735,5.8841,3772.1,3771.4,0.642]
[1717208555073,2.8841,3772.1,3771.4,0.642]
[1717208557511,2.8841,3772.1,3771.3,2.65156]
[1717208557714,0.73819295,3772.0,3771.2,0.642]
[1717208561362,0.73819295,3772.0,3771.4,0.642]
[1717208561661,2.8841,3772.1,3771.4,0.642]
[1717208563386,0.57331561,3772.0,3771.4,0.642]
[1717208567498,0.57331561,3772.0,3770.9,2.3312]
[1717208567687,0.57331561,3772.0,3771.3,0.642]
[1717208567897,0.34574156,3771.9,3771.3,0.642]
[1717208569694,0.91906327,3771.9,3771.3,0.642]
[1717208569859,0.34574156,3771.9,3771.3,0.642]
[1717208572898,3.0336,3771.8,3770.8,2.6519]
[1717208573097,2.4836,3771.6,3770.9,0.642]
[1717208573906,0.57334411,3771.5,3770.9,0.642]
[1717208579392,2.4836,3771.6,3770.9,0.642]
[1717208579595,0.57334099,3771.5,3770.9,0.642]
[1717208580540,2.4836,3771.6,3770.9,0.642]
[1717208581929,2.4836,3771.6,3771.1,0.642]
[1717208585297,2.4836,3771.6,3770.8,2.6519]
[1717208585595,2.4836,3771.6,3771.0,0.642]
[1717208587120,0.57333742,3771.5,3771.0,0.642]
[1717208593553,2.2666,3771.4,3771.0,0.642]
[1717208593725,0.55,3771.3,3770.5,0.642]
[1717208593909,1.12337027,3771.3,3770.5,0.642]
[1717208595129,0.55,3771.3,3770.5,0.642]
[1717208595327,1.12337918,3771.3,3770.5,0.642]
[1717208596532,1.12337918,3771.3,3770.3,2.65227]
[1717208596745,1.12337918,3771.3,3770.6,0.642]
[1717208597256,2.2666,3771.2,3770.3,2.65227]
[1717208597410,2.2666,3771.2,3770.5,0.642]
[1717208601917,0.55,3771.1,3770.5,0.642]
[1717208608051,1.096815,3771.1,3770.3,2.65227]
[1717208608255,2.2889,3771.0,3770.3,2.65227]
[1717208608478,2.2889,3771.0,3770.3,3.29427]
[1717208611651,2.2889,3771.0,3769.8,2.6526]
[1717208611977,2.2889,3770.8,3770.3,0.642]
[1717208612807,2.65267,3769.8,3768.8,0.55543684]
[1717208612955,2.2889,3769.7,3768.3,0.55543684]
[1717208613300,2.2889,3769.7,3768.6,0.642]
[1717208613301,0.642,3769.5,3768.6,0.642]
[1717208613465,0.642,3769.5,3768.4,0.642]
[1717208613874,0.642,3769.3,3768.4,0.642]
[1717208614075,0.642,3769.3,3768.3,2.9617]
[1717208614275,0.642,3769.3,3768.3,4.266261]
[1717208615304,0.642,3769.3,3768.3,3.624261]
[1717208615605,0.642,3769.3,3768.4,0.642]
[1717208616702,0.642,3769.1,3768.1,7.43]
[1717208616883,0.93509,3769.1,3768.1,8.072]
[1717208617216,0.642,3769.1,3768.1,0.642]
[1717208617401,0.642,3769.1,3768.3,0.642]
[1717208618810,2.2889,3769.2,3768.3,0.642]
[1717208619105,2.847277,3769.2,3768.3,0.642]
[1717208621306,2.847277,3769.2,3768.0,2.65391]
[1717208621486,0.642,3769.1,3768.1,0.642]
[1717208622909,2.847277,3769.2,3768.1,0.642]
[1717208623089,3.489277,3769.2,3768.1,0.642]
[1717208623263,0.3489277,3769.1,3768.3,0.642]
[1717208625074,2.3987,3769.0,3767.7,2.5]
[1717208625275,2.3987,3769.0,3768.1,0.642]
[1717208625999,3.0407,3769.0,3768.1,0.642]
[1717208626203,0.90428377,3768.9,3768.1,0.642]
[1717208628979,2.3987,3768.8,3768.1,0.642]
[1717208629900,2.3987,3768.8,3767.7,2.5]
[1717208630097,2.3987,3768.8,3768.1,0.642]
[1717208635512,2.3987,3768.8,3767.7,2.5]
[1717208635658,2.3987,3768.8,3768.1,0.642]
[1717208639041,2.3987,3768.8,3767.7,2.5]
[1717208639236,2.3987,3768.8,3768.1,0.642]
[1717208640501,2.3987,3768.8,3768.3,0.642]
[1717208644024,2.326,3769.3,3768.7,0.642]
[1717208645385,0.57370796,3769.2,3768.7,0.642]
[1717208645684,2.326,3769.3,3768.7,0.642]
[1717208653345,2.326,3769.3,3768.0,2.4183]
[1717208653482,2.326,3769.3,3768.4,0.642]
[1717208653679,2.326,3769.1,3768.4,0.642]
[1717208654824,2.326,3769.1,3768.6,0.642]
[1717208658034,2.326,3769.1,3768.5,0.642]
[1717208661429,2.326,3769.1,3768.0,2.4183]
[1717208661632,0.2326,3769.0,3768.3,0.642]
[1717208661834,2.3257,3768.9,3768.3,0.642]
[1717208668727,2.3257,3768.9,3768.5,0.642]
[1717208674974,2.3257,3768.9,3768.3,0.642]
[1717208675179,0.521146,3768.8,3768.3,0.642]
[1717208678291,1.09490227,3768.8,3768.3,0.642]
[1717208679288,0.521146,3768.8,3768.3,0.642]
[1717208679491,1.09490526,3768.8,3768.3,0.642]
[1717208685005,2.47,3768.7,3768.3,0.642]
[1717208685188,0.35649053,3768.6,3768.1,0.642]
[1717208685390,2.47,3768.7,3768.1,0.642]
[1717208693123,2.47,3768.7,3768.3,0.642]
[1717208699778,0.57377334,3768.6,3768.3,0.642]
[1717208700296,2.3786,3768.9,3768.5,0.642]
[1717208700492,0.57376081,3768.8,3768.5,0.642]
[1717208701537,0.57374312,3768.8,3768.5,0.642]
[1717208701705,0.57374312,3769.1,3768.7,0.642]
[1717208701902,5.03144,3769.6,3769.0,0.642]
[1717208701903,1.64622712,3769.5,3769.0,0.642]
[1717208702101,0.57374312,3769.4,3769.0,0.642]
[1717208703020,0.57369564,3769.4,3768.6,4.95587]
[1717208703227,0.57369564,3769.4,3769.3,0.642]
[1717208703387,0.57369564,3769.5,3769.3,0.642]
[1717208703951,0.57369564,3769.8,3769.3,0.642]
[1717208705349,0.57369564,3769.8,3769.5,0.642]
[1717208705889,0.57369564,3769.8,3769.3,0.642]
[1717208706433,0.71020696,3770.0,3769.6,0.642]
[1717208707019,0.13651132,3770.0,3769.6,0.642]
[1717208710557,0.13651132,3770.0,3769.8,0.642]
[1717208712198,0.13651132,3770.0,3769.9,0.642]
[1717208717358,0.13651132,3770.0,3769.7,2.3024]
[1717208717522,0.13651132,3770.0,3769.5,0.642]
[1717208717523,2.2924,3769.9,3769.5,0.642]
[1717208719201,2.2924,3769.9,3769.3,2.65297]
[1717208719437,2.2924,3769.9,3769.5,0.642]
[1717208721359,2.2924,3769.9,3769.3,2.65297]
[1717208721561,2.53529113,3769.9,3768.8,2.65333]
[1717208721760,2.65275,3769.7,3769.1,0.642]
[1717208721910,2.2924,3769.6,3769.1,0.642]
[1717208722227,2.2924,3769.6,3768.9,0.642]
[1717208723327,2.2924,3769.6,3769.1,0.642]
[1717208723931,2.2924,3769.6,3769.3,0.642]
[1717208724164,2.4139,3769.9,3769.3,0.642]
[1717208724364,5.4139,3769.9,3769.5,0.642]
[1717208726546,3.0,3769.9,3769.5,0.642]
[1717208726730,0.13651132,3770.0,3769.7,0.642]
[1717208727580,0.13651132,3770.0,3769.5,0.642]
[1717208728120,0.71013791,3770.0,3769.5,0.642]
[1717208730880,0.57362659,3770.0,3769.7,0.642]
[1717208731040,0.57362659,3770.5,3769.7,0.642]
[1717208731223,1.13758325,3770.5,3769.7,0.642]
[1717208731429,0.57357597,3770.4,3769.7,0.642]
[1717208731669,1.13753263,3770.5,3769.7,0.642]
[1717208732225,4.13753263,3770.5,3769.7,0.642]
[1717208732569,3.56395666,3770.5,3769.7,0.642]
[1717208732807,1.50076647,3770.4,3769.7,0.642]
[1717208733067,0.5735768,3770.3,3769.7,0.642]
[1717208736738,0.57357967,3770.3,3769.7,0.642]
[1717208738434,0.57358133,3770.3,3769.7,0.642]
[1717208740642,2.4097,3770.2,3769.0,5.34886]
[1717208740882,0.57358185,3770.1,3769.4,0.642]
[1717208741882,0.57358185,3770.1,3769.1,0.534886]
[1717208742082,3.22606185,3770.1,3769.4,0.642]
[1717208742266,0.57358185,3770.0,3769.4,0.642]
[1717208745609,0.57360377,3770.0,3769.4,0.642]
[1717208748086,0.57360377,3770.0,3769.6,0.642]
[1717208748660,0.57360377,3770.0,3769.8,0.642]
[1717208749176,0.57360377,3770.4,3769.8,0.642]
[1717208750004,0.57357743,3770.4,3769.8,0.642]
[1717208750213,1.19614817,3770.4,3769.8,0.642]
[1717208751413,0.57357831,3770.3,3769.8,0.642]
[1717208751619,1.19614905,3770.4,3769.8,0.642]
[1717208757326,0.62257074,3770.4,3769.8,0.642]
[1717208757489,0.57356614,3770.3,3769.8,0.642]
[1717208757691,1.19613688,3770.4,3769.8,0.642]
[1717208759405,0.57356614,3770.4,3769.8,0.642]
[1717208761335,0.57356614,3770.4,3770.0,0.642]
[1717208762679,0.57356614,3770.4,3770.2,0.642]
[1717208762928,0.57356614,3771.0,3770.2,0.642]
[1717208763107,0.57356614,3770.9,3770.2,0.642]
[1717208763314,0.57356614,3770.8,3770.2,0.642]
[1717208763516,0.57356614,3771.0,3770.2,0.642]
[1717208763829,0.57356614,3770.9,3770.1,2.4092]
[1717208764031,3.57356614,3771.0,3770.1,3.0512]
[1717208764181,0.57356614,3770.9,3770.1,3.0512]
[1717208764581,0.57356614,3770.9,3769.6,2.4092]
[1717208764781,2.3774,3770.6,3769.6,2.4092]
[1717208764984,2.3774,3770.6,3769.7,0.642]
[1717208765183,0.57356614,3770.5,3769.7,0.642]
[1717208766180,0.57356614,3770.5,3769.9,0.642]
[1717208768130,2.3774,3770.6,3769.9,0.642]
[1717208768340,0.57352327,3770.5,3769.9,0.642]
[1717208771807,0.642,3770.1,3769.1,7.43]
[1717208772010,3.29461,3769.9,3768.7,0.55470634]
[1717208772211,1.19585208,3769.8,3768.8,0.642]
[1717208772549,0.55,3769.7,3768.8,0.642]
[1717208772753,1.12366256,3769.7,3768.8,0.642]
[1717208772961,1.76566256,3769.7,3768.8,0.642]
[1717208773181,2.50744992,3769.7,3768.8,0.642]
[1717208773330,0.57366256,3769.6,3768.8,0.642]
[1717208774029,0.57366256,3769.6,3769.0,0.642]
[1717208775743,1.29178736,3769.7,3769.0,0.642]
[1717208781036,2.65261,3769.9,3768.6,2.4092]
[1717208781037,2.65261,3769.9,3769.2,0.642]
[1717208781237,0.57364056,3769.8,3769.2,0.642]
[1717208785500,2.65261,3769.9,3769.2,0.642]
[1717208785799,0.57363592,3769.8,3769.2,0.642]
[1717208789501,0.57363592,3769.8,3769.0,0.642]
[1717208790302,1.19820051,3769.8,3769.0,0.642]
[1717208791185,2.65279,3769.7,3768.6,2.4092]
[1717208791396,2.4705,3769.6,3768.9,0.642]
[1717208791702,2.4705,3769.6,3768.6,2.4092]
[1717208791866,2.4705,3769.6,3768.9,0.642]
[1717208792069,0.57478546,3769.5,3768.9,0.642]
[1717208793355,2.4705,3769.6,3768.9,0.642]
[1717208795411,0.57366861,3769.5,3768.9,0.642]
[1717208796093,2.4705,3769.6,3768.9,0.642]
[1717208796297,2.4705,3769.6,3769.1,0.642]
[1717208798462,0.57365585,3769.5,3769.1,0.642]
[1717208799327,0.57365585,3769.5,3769.1,3.0612]
[1717208799626,2.65279,3769.7,3769.1,3.0612]
[1717208799627,0.57365585,3769.6,3769.1,3.0612]
[1717208800032,0.57365585,3769.6,3769.3,0.642]
[1717208800200,2.65279,3769.7,3769.3,0.642]
[1717208800401,0.57363878,3769.6,3769.3,0.642]
[1717208801976,0.642,3770.3,3769.1,2.4192]
[1717208801977,1.061796,3771.6,3769.5,0.642]
[1717208802148,0.41521312,3772.5,3770.9,2.65188]
[1717208802461,5.00088,3772.7,3770.9,3.29388]
[1717208802662,2.3502,3772.7,3770.9,3.864918]
[1717208802859,2.3412,3773.2,3770.9,3.864918]
[1717208803084,2.9832,3773.2,3770.9,3.864918]
[1717208803452,0.642,3772.5,3770.9,3.50956608]
[1717208803612,0.642,3772.5,3770.9,4.15156608]
[1717208806483,2.3412,3772.2,3770.9,3.50956608]
[1717208806801,3.0,3772.1,3770.9,3.864918]
[1717208807114,3.0,3772.1,3770.9,5.44900054]
[1717208807316,3.0,3772.1,3770.9,4.15157804]
[1717208807474,3.0,3772.1,3770.9,3.864918]
[1717208808011,3.0,3772.1,3770.9,3.222918]
[1717208808199,3.0,3772.1,3770.9,3.864918]
[1717208814419,3.642,3772.1,3770.9,3.29388]
[1717208815539,3.642,3772.1,3770.9,2.65188]
[1717208815702,3.642,3772.1,3770.9,3.29388]
[1717208815885,3.0,3772.1,3770.9,3.29388]
[1717208816087,0.642,3772.0,3770.9,3.29388]
[1717208818083,2.3482,3771.3,3770.4,2.65223]
[1717208818465,2.3482,3771.3,3770.7,0.642]
[1717208820089,2.3482,3771.3,3770.9,0.642]
[1717208820290,2.3482,3771.7,3770.9,0.642]
[1717208820589,3.0,3771.6,3770.9,0.642]
[1717208829341,3.0,3771.6,3770.9,0.92868812]
[1717208830010,3.0,3771.6,3770.9,0.642]
[1717208831343,3.0,3771.6,3770.9,2.51425057]
[1717208832746,3.0,3771.6,3770.9,2.51421641]
[1717208833599,3.0,3771.6,3770.9,0.92868569]
[1717208834612,2.3482,3771.7,3770.9,0.92868569]
[1717208834818,2.3482,3771.7,3770.9,1.28674726]
[1717208835911,3.0,3772.1,3770.9,1.28674726]
[1717208837468,3.0,3772.1,3770.9,1.28671498]
[1717208837842,9.7782,3772.2,3770.9,3.57631498]
[1717208840331,2.3856,3772.6,3770.9,3.57631498]
[1717208840527,2.3856,3772.6,3770.9,3.28966157]
[1717208840732,2.3856,3772.6,3770.9,3.57628341]
[1717208840933,5.65056,3772.8,3771.5,2.2896]
[1717208840934,3.0,3772.8,3771.5,2.2896]
[1717208841193,5.3856,3773.2,3772.5,0.642]
[1717208846592,2.65041,3773.0,3772.3,0.642]
[1717208846747,3.0,3772.9,3772.3,0.642]
[1717208848598,2.3856,3772.8,3771.6,0.28659241]
[1717208848777,2.3856,3772.8,3771.9,0.642]
[1717208848778,3.73918,3772.7,3771.9,0.642]
[1717208848974,3.20062,3772.7,3771.9,0.642]
[1717208852480,3.20062,3772.7,3771.5,2.93803008]
[1717208852678,3.20062,3772.7,3771.7,0.642]
[1717208854202,2.3856,3772.6,3771.7,0.642]
[1717208854404,2.3856,3772.6,3771.5,2.65142]
[1717208854405,0.622822,3772.5,3771.5,2.65142]
[1717208854553,2.65084,3772.4,3771.8,0.642]
[1717208856603,2.65084,3772.4,3771.5,2.65142]
[1717208856604,2.65099,3772.2,3771.4,0.28662786]
[1717208856768,0.503659,3772.1,3771.4,0.642]
[1717208860201,0.503659,3772.1,3771.6,0.642]
[1717208861708,0.503659,3772.1,3771.4,0.642]
[1717208862704,0.503659,3772.1,3771.1,1.58502951]
[1717208862911,2.4815,3771.9,3771.3,0.642]
[1717208867419,2.4815,3771.9,3771.0,4.23653824]
[1717208867616,2.4815,3771.9,3771.1,0.28664978]
[1717208867794,2.4815,3771.9,3771.3,0.642]
[1717208872370,2.4815,3771.9,3771.1,0.92864133]
[1717208872584,2.85180329,3771.9,3771.1,0.28664133]
[1717208872781,3.20126,3771.8,3771.1,0.28664133]
[1717208873072,2.4815,3771.7,3771.1,0.28664133]
[1717208876634,0.55,3771.6,3771.1,0.28664133]
[1717208876826,1.27450633,3771.6,3771.1,0.28664133]
[1717208877025,2.408,3771.4,3771.1,0.28664133]
[1717208877258,2.6516,3771.3,3771.1,0.28664133]
[1717208877678,0.55,3771.2,3771.1,0.28664133]
[1717208878082,0.54866741,3771.2,3771.1,0.28664133]
[1717208878249,1.17369415,3771.2,3771.1,0.28664133]
[1717208879308,1.17369415,3771.2,3770.4,0.642]
[1717208880352,2.6516,3771.3,3770.6,0.642]
[1717208880553,2.6516,3771.3,3770.8,0.642]
[1717208883154,2.6516,3771.3,3770.4,2.4157]
[1717208883359,2.6516,3771.3,3770.6,0.642]
[1717208883927,2.6516,3771.3,3770.1,2.4643]
[1717208884075,3.23001063,3771.3,3770.6,0.642]
[1717208885347,3.23001063,3771.3,3770.2,2.65236]
[1717208885656,2.6516,3771.3,3770.6,0.642]
[1717208886256,2.6516,3771.3,3770.2,2.65236]
[1717208886462,2.6516,3771.3,3770.6,0.642]
[1717208899318,2.408,3771.4,3771.0,0.642]
[1717208899526,5.6513,3771.8,3771.0,0.642]
[1717208899527,2.4418,3771.7,3771.0,0.642]
[1717208900815,2.4418,3771.7,3771.2,0.642]
[1717208904104,2.4418,3771.7,3770.7,2.4764]
[1717208904276,2.4418,3771.7,3771.1,0.642]
[1717208916177,2.4418,3771.5,3770.9,0.642]
[1717208916384,5.4418,3771.5,3770.9,0.642]
[1717208917900,5.4418,3771.5,3770.8,0.642]
[1717208921062,2.65154,3771.4,3770.2,2.76308601]
[1717208921248,2.8552,3771.3,3770.6,0.642]
[1717208923839,3.29371,3771.2,3770.1,0.28668601]
[1717208924180,3.29371,3771.2,3770.2,0.642]
[1717208924181,4.95705,3771.0,3770.2,0.642]
[1717208924388,0.55,3770.9,3770.2,0.642]
[1717208931648,0.55,3770.9,3770.3,0.642]
[1717208933303,2.3052,3771.0,3770.3,0.642]
[1717208939302,2.3052,3771.0,3770.5,0.642]
[1717208939904,3.642,3771.4,3770.5,0.642]
[1717208939905,3.0,3771.4,3770.5,0.642]
[1717208940068,2.3579,3771.2,3770.7,0.642]
[1717208940271,2.3579,3771.2,3770.7,1.214789]
[1717208940467,2.3579,3771.2,3770.7,0.642]
[1717208941750,2.3579,3771.4,3770.9,0.642]
[1717208953320,0.17190907,3771.5,3770.9,0.642]
[1717208953617,3.17190907,3771.5,3770.9,0.642]
[1717208953816,0.17190907,3771.5,3770.9,0.642]
[1717208954021,0.17190907,3771.5,3771.1,0.642]
[1717208960457,3.0,3771.7,3771.0,2.4337]
[1717208960604,3.0,3771.9,3771.4,0.642]
[1717208965379,2.4261,3771.8,3771.0,2.4337]
[1717208965536,3.233824,3771.8,3771.1,0.642]
[1717208965729,3.0,3771.7,3771.1,0.642]
[1717208967390,3.0,3771.7,3771.3,0.642]
[1717208967688,7.43,3772.2,3771.5,2.2515]
[1717208967899,2.4261,3772.1,3771.2,2.65165]
[1717208968223,2.4261,3772.1,3771.5,0.642]
[1717208980039,2.4261,3772.1,3771.2,2.65165]
[1717208980259,2.4261,3772.1,3771.5,0.642]
[1717208990938,2.4261,3772.1,3771.2,2.65165]
[1717208991271,2.4261,3772.1,3771.5,0.642]
[1717208991426,0.24261,3772.0,3771.5,0.642]
[1717208992382,2.4261,3772.1,3771.7,0.642]
[1717208995931,3.0,3772.4,3771.9,0.642]
[1717208996126,3.0,3772.3,3771.9,0.642]
[1717208996429,5.3283,3772.5,3771.9,0.642]
[1717208998897,3.0,3772.5,3771.9,0.642]
[1717208999193,0.19218464,3772.6,3771.9,0.642]
[1717209000701,0.19218464,3772.6,3771.6,4.90508]
[1717209001021,0.19218464,3772.6,3771.9,0.642]
[1717209002624,0.19218464,3772.6,3772.1,0.642]
[1717209003321,0.19218464,3772.6,3772.3,0.642]
[1717209003712,0.19218464,3772.6,3772.5,0.642]
[1717209006003,0.19218464,3772.6,3772.3,0.642]
[1717209011258,0.19218464,3772.6,3771.5,2.65145]
[1717209011259,2.271,3772.5,3771.5,2.65145]
[1717209011457,2.271,3772.3,3771.1,9.8337]
[1717209011601,0.55,3772.2,3771.5,0.642]
[1717209017077,0.55,3772.2,3771.7,0.642]
[1717209017554,0.55,3772.2,3771.2,2.65163]
[1717209017745,0.55,3772.2,3771.7,0.642]
[1717209019976,2.271,3772.3,3771.7,0.642]
[1717209020180,2.271,3772.3,3771.9,0.642]
[1717209021180,0.19218464,3772.6,3772.0,2.65111]
[1717209021350,0.19218464,3772.6,3772.2,0.642]
[1717209022336,0.19218464,3772.6,3772.2,1.202531]
[1717209024249,0.19218464,3772.6,3772.5,0.642]
[1717209031783,3.0,3773.2,3772.5,0.642]
[1717209031967,3.0,3773.2,3772.8,0.642]
[1717209032139,5.3265,3773.3,3773.0,0.642]
[1717209032341,10.07978,3773.9,3773.0,0.642]
[1717209032342,2.3265,3773.7,3773.0,0.642]
[1717209032542,3.631328,3773.7,3773.0,0.642]
[1717209033444,2.3265,3773.6,3772.5,2.65076]
[1717209033659,2.3265,3773.6,3772.8,0.642]
[1717209035358,1.304828,3773.7,3772.8,3.0701]
[1717209035670,3.0,3773.8,3772.8,3.0701]
[1717209037170,3.0,3773.8,3773.0,0.642]
[1717209037561,3.0,3773.8,3773.2,0.642]
[1717209038086,3.0,3773.8,3773.0,0.642]
[1717209039873,3.0,3773.8,3772.8,2.4281]
[1717209040068,3.0,3773.8,3773.1,0.642]
[1717209041398,3.0,3773.8,3772.8,2.935986]
[1717209041597,3.0,3773.8,3773.0,0.642]
[1717209041598,2.2949,3773.7,3773.0,0.642]
[1717209043687,2.65021,3773.3,3772.1,2.2767]
[1717209043890,2.65021,3773.3,3772.6,0.642]
[1717209044079,2.65021,3773.3,3772.8,0.642]
[1717209044898,2.2949,3773.5,3772.8,2.9187]
[1717209045093,5.64988,3773.8,3772.8,2.9187]
[1717209045094,3.0,3773.7,3773.0,0.642]
[1717209046613,3.0,3773.7,3773.2,0.642]
[1717209046817,3.0,3773.7,3773.1,0.642]
[1717209051978,2.64988,3773.8,3773.3,0.642]
[1717209054524,2.64988,3773.8,3772.9,0.22767]